bitfinex-derivatives/quotes_ETHF0:USTF0_20250803
["timestamp","ask_amount","ask_price","bid_price","bid_amount"]
[1754212228558,2.5785,3457.6,3457.5,3.1575]
[1754212232364,2.5785,3457.6,3457.5,3.73601]
[1754212234373,2.5785,3457.6,3457.5,3.1575]
[1754212234972,3.5613,3457.9,3457.0,0.6532]
[1754212235273,3.1649,3457.6,3457.5,1.216]
[1754212235473,3.1649,3457.6,3457.5,3.0645]
[1754212236077,2.5044,3457.6,3457.5,3.0645]
[1754212236473,3.1649,3457.6,3457.5,3.0645]
[1754212236775,2.5044,3457.6,3457.5,3.0645]
[1754212236971,2.5044,3457.6,3457.5,3.64301]
[1754212250079,5.0184,3458.0,3457.9,3.10784]
[1754212250382,5.0184,3458.0,3457.9,3.64294]
[1754212250579,10.4816605,3458.0,3457.9,3.64294]
[1754212251484,3.2078,3458.0,3457.9,3.64294]
[1754212251983,5.7865,3458.2,3458.1,3.64291]
[1754212252173,0.879,3458.2,3458.1,3.64291]
[1754212252376,4.4271,3458.4,3458.1,1.79441]
[1754212252587,5.6484605,3458.3,3458.2,3.0645]
[1754212252882,7.2738605,3458.3,3458.2,3.0645]
[1754212253079,2.5044,3458.3,3458.2,3.0645]
[1754212254681,3.1649,3458.3,3458.2,3.0645]
[1754212254893,3.1649,3458.2,3458.1,1.23161]
[1754212255184,7.9343605,3458.2,3458.1,1.23161]
[1754212255487,3.1649,3458.2,3458.1,1.89181]
[1754212256885,3.1649,3458.2,3458.1,2.33181]
[1754212257086,3.1649,3458.2,3458.1,3.64291]
[1754212257591,7.9343605,3458.2,3458.1,3.64291]
[1754212259788,0.3535,3458.2,3458.1,3.64291]
[1754212260190,3.2078,3458.4,3458.3,1.79437]
[1754212260391,3.7333,3458.4,3458.3,3.64287]
[1754212260593,4.0868,3458.4,3458.3,3.64287]
[1754212261091,3.5613,3458.4,3458.3,3.64287]
[1754212261291,0.5255,3458.6,3458.5,0.57834]
[1754212261491,2.5044,3458.9,3458.8,1.79429]
[1754212261697,3.202,3458.9,3458.8,3.64279]
[1754212261889,7.9714605,3458.9,3458.8,3.64279]
[1754212262487,1.2265,3458.6,3458.5,1.3422]
[1754212262704,6.2804,3458.6,3458.5,0.6781]
[1754212262998,6.2804,3458.6,3458.5,1.7757]
[1754212262999,11.0498605,3458.6,3458.5,1.7757]
[1754212263202,11.0498605,3458.6,3458.5,2.2284]
[1754212263397,11.0498605,3458.6,3458.5,2.7289]
[1754212263797,0.8848,3458.3,3458.2,0.57839]
[1754212263988,7.8420605,3458.3,3458.2,1.25649]
[1754212264197,3.0726,3458.3,3458.2,2.80679]
[1754212264393,3.0726,3458.3,3458.2,3.30729]
[1754212264893,7.8420605,3458.3,3458.2,3.30729]
[1754212266600,7.8420605,3458.3,3458.2,3.65519]
[1754212267493,7.8420605,3458.3,3458.2,3.15469]
[1754212267693,5.9959605,3458.3,3458.1,1.2565]
[1754212267897,7.8420605,3458.2,3458.1,1.2565]
[1754212268303,7.8420605,3458.2,3458.1,2.3541]
[1754212269991,1.8461,3458.1,3457.9,1.25654]
[1754212270199,7.8420605,3458.0,3457.9,1.92064]
[1754212270700,7.8420605,3458.0,3457.9,2.35414]
[1754212271103,7.8420605,3458.0,3457.9,3.65524]
[1754212271104,7.1444605,3458.0,3457.9,3.65524]
[1754212272702,7.8420605,3458.0,3457.9,3.65524]
[1754212273100,7.1444605,3458.0,3457.9,3.65524]
[1754212274807,7.8420605,3458.0,3457.9,3.65524]
[1754212275407,7.1444605,3458.0,3457.9,3.65524]
[1754212276803,5.1111605,3458.0,3457.9,3.65524]
[1754212277011,3.2078,3458.2,3457.9,1.81254]
[1754212277206,7.9772605,3458.2,3458.1,3.65521]
[1754212277607,3.2078,3458.2,3458.1,3.65521]
[1754212278309,6.0875,3458.6,3458.5,3.65514]
[1754212278510,8.16439016,3458.6,3458.5,3.65514]
[1754212278711,11.01165066,3458.6,3458.5,3.65514]
[1754212279210,10.0304605,3458.6,3458.5,3.65514]
[1754212279515,11.49633876,3458.6,3458.5,3.65514]
[1754212280309,10.5152605,3458.6,3458.5,3.65514]
[1754212280506,11.54687293,3458.6,3458.5,3.65514]
[1754212280911,11.88857293,3458.6,3458.5,3.65514]
[1754212282114,6.29261243,3458.6,3458.5,3.65514]
[1754212282611,1.03161243,3458.6,3458.5,3.65514]
[1754212282812,1.03006204,3459.0,3458.8,1.81239]
[1754212283010,1.03006204,3459.1,3459.0,3.61906]
[1754212283310,3.2078,3459.2,3459.0,3.61906]
[1754212283608,3.2078,3459.2,3459.1,3.0408]
[1754212284004,1.03006204,3459.4,3459.2,1.81232]
[1754212284210,6.0279605,3459.4,3459.3,3.0408]
[1754212284412,7.1783605,3459.4,3459.3,3.0408]
[1754212284711,7.8420605,3459.4,3459.3,3.0408]
[1754212287509,7.8420605,3459.4,3459.3,1.47976051]
[1754212287910,2.4089,3459.4,3459.3,1.47976051]
[1754212288112,2.4135726,3459.4,3459.3,1.47976051]
[1754212288316,2.0718726,3459.4,3459.3,1.47976051]
[1754212288711,2.6198,3459.6,3459.5,1.2341]
[1754212289314,3.0726,3459.6,3459.5,1.2341]
[1754212289719,3.0726,3459.6,3459.4,0.57819]
[1754212289916,1.2265,3459.6,3459.5,0.4335]
[1754212290221,1.7113,3459.6,3459.5,0.4335]
[1754212290414,3.0726,3459.6,3459.5,0.4335]
[1754212290716,5.6477551,3459.6,3459.5,0.84]
[1754212291015,4.4212551,3459.6,3459.5,0.84]
[1754212291410,2.5751551,3459.6,3459.5,0.84]
[1754212291614,2.5751551,3459.7,3459.6,1.41816]
[1754212291912,2.78949438,3459.8,3459.7,0.6473]
[1754212292117,2.78949438,3459.8,3459.7,1.5705]
[1754212292319,2.07009438,3459.9,3459.8,1.50132]
[1754212292523,0.7194,3459.9,3459.8,1.50132]
[1754212292722,5.26829438,3459.9,3459.8,1.50132]
[1754212293116,5.26829438,3459.9,3459.8,1.81562]
[1754212293422,3.1982,3459.9,3459.8,1.81562]
[1754212294913,4.23867201,3459.9,3459.8,1.81562]
[1754212295117,1.2472,3459.7,3459.6,0.57815]
[1754212295411,1.2472,3459.7,3459.6,1.35015]
[1754212295412,4.23867201,3459.7,3459.6,1.35015]
[1754212295618,4.23867201,3459.7,3459.6,1.81565]
[1754212296417,1.04047201,3459.7,3459.6,1.81565]
[1754212296718,2.46777201,3459.7,3459.6,2.14865]
[1754212296913,5.05124751,3459.7,3459.6,2.14865]
[1754212297108,4.34334751,3459.7,3459.6,2.14865]
[1754212297308,5.05124751,3459.7,3459.6,2.14865]
[1754212298018,2.99147201,3459.7,3459.6,2.14865]
[1754212298822,5.57494751,3459.7,3459.6,2.14865]
[1754212299022,6.38054751,3459.7,3459.6,2.14865]
[1754212299723,3.79707201,3459.7,3459.5,3.015322]
[1754212299923,2.46777201,3459.6,3459.5,3.015322]
[1754212300324,2.93997201,3459.6,3459.5,3.593492]
[1754212300520,4.23867201,3459.6,3459.5,3.593492]
[1754212301123,4.23867201,3459.6,3459.5,0.47185697]
[1754212302614,4.23867201,3459.6,3459.0,3.2078]
[1754212302815,3.05599027,3459.4,3459.0,3.2078]
[1754212303025,1.74837201,3459.3,3459.1,0.57824]
[1754212303227,1.75987201,3459.2,3459.1,0.57824]
[1754212303421,3.82748168,3459.2,3459.1,0.57824]
[1754212303827,1.75987201,3459.2,3459.1,0.57824]
[1754212305026,1.04047201,3459.2,3459.1,0.57824]
[1754212306135,1.75987201,3459.2,3459.1,0.57824]
[1754212306433,5.05156228,3459.2,3459.1,0.57824]
[1754212307737,5.05156228,3459.2,3459.0,3.2078]
[1754212307936,6.82246228,3459.1,3459.0,0.57826]
[1754212308130,4.23867201,3459.1,3459.0,0.57826]
[1754212308330,7.84367718,3459.1,3459.0,0.57826]
[1754212308939,4.238859,3459.1,3459.0,0.57826]
[1754212309335,2.467959,3459.1,3459.0,0.57826]
[1754212309535,3.715159,3459.1,3459.0,0.57826]
[1754212309738,4.238859,3459.1,3458.7,19.697]
[1754212309939,2.79275221,3458.8,3458.7,19.697]
[1754212310133,3.83341121,3458.8,3458.7,19.697]
[1754212310329,4.54131121,3458.8,3458.7,19.697]
[1754212311038,4.54131121,3458.8,3458.7,20.27531]
[1754212311838,2.467959,3458.8,3458.7,20.27531]
[1754212312135,4.238859,3458.8,3458.7,20.27531]
[1754212312339,6.31221121,3458.8,3458.7,20.27531]
[1754212312938,4.238859,3458.8,3458.7,0.57831]
[1754212313335,6.31221121,3458.8,3458.7,20.27631]
[1754212313539,4.238859,3458.8,3458.7,20.27631]
[1754212315246,9.0083195,3458.8,3458.7,0.57831]
[1754212316344,9.0083195,3458.8,3458.6,3.2078]
[1754212316546,3.1982,3458.6,3458.5,0.57833]
[1754212316840,4.238859,3458.6,3458.5,0.57833]
[1754212317033,9.0083195,3458.6,3458.5,0.57833]
[1754212319048,10.5650324,3458.6,3458.5,0.57833]
[1754212319443,9.0083195,3458.6,3458.5,0.57833]
[1754212321049,9.0083195,3458.6,3458.4,19.698]
[1754212321350,3.1982,3458.1,3458.0,0.57842]
[1754212321554,9.0083195,3458.1,3458.0,20.27842]
[1754212322348,10.04544282,3458.1,3458.0,20.27842]
[1754212322750,10.04544282,3458.1,3458.0,0.57842]
[1754212323049,8.09444282,3458.1,3457.9,19.7]
[1754212323256,10.27924282,3458.0,3457.9,19.7]
[1754212324054,9.2421195,3458.0,3457.9,19.7]
[1754212324953,10.79780848,3458.0,3457.9,19.7]
[1754212325546,10.79780848,3458.0,3457.2,0.23532239]
[1754212325547,8.74550848,3458.0,3457.6,0.57848]
[1754212325841,8.74550848,3458.0,3457.6,20.28048]
[1754212325842,8.2014605,3457.7,3457.6,20.28048]
[1754212326049,9.2421195,3457.7,3457.6,20.28048]
[1754212338261,10.27754481,3457.7,3457.6,20.28048]
[1754212338460,9.2421195,3457.7,3457.6,20.28048]
[1754212339156,10.27754481,3457.7,3457.6,20.28048]
[1754212343256,9.2421195,3457.7,3457.6,20.28048]
[1754212346257,10.79780848,3457.7,3457.6,20.28048]
[1754212347159,7.36580848,3457.7,3457.6,20.28048]
[1754212347366,2.77343798,3457.7,3457.6,20.28048]
[1754212347562,5.43473798,3457.7,3457.6,0.57848]
[1754212347864,8.6485095,3457.7,3457.6,20.28248]
[1754212348663,10.20419848,3457.7,3457.6,20.28248]
[1754212348860,8.6485095,3457.7,3457.6,20.28248]
[1754212350458,8.6485095,3457.7,3457.6,0.57848]
[1754212351865,3.307349,3457.7,3457.6,0.57848]
[1754212352058,2.433049,3457.7,3457.6,0.57848]
[1754212352460,3.812549,3457.7,3457.6,0.57848]
[1754212352761,5.371858,3457.7,3457.6,0.57848]
[1754212353262,8.5820095,3457.7,3457.6,0.57848]
[1754212355064,10.14168913,3457.7,3457.6,0.57848]
[1754212359463,8.5820095,3457.7,3457.6,0.57848]
[1754212360959,10.14168913,3457.7,3457.6,0.57848]
[1754212363367,8.5820095,3457.7,3457.6,0.57848]
[1754212363560,9.17612273,3457.7,3457.6,0.57848]
[1754212368474,10.73524131,3457.7,3457.6,0.57848]
[1754212374372,9.17612273,3457.7,3457.6,0.57848]
[1754212374572,3.3358,3456.9,3456.8,3.78642]
[1754212374769,9.14642273,3456.9,3456.8,3.2078]
[1754212374970,0.8439,3456.7,3456.6,0.23024166]
[1754212375170,10.70533515,3456.7,3456.6,0.23024166]
[1754212375867,10.70533515,3456.7,3456.5,0.57867]
[1754212375868,2.5802,3456.6,3456.5,0.57867]
[1754212376083,10.18407346,3456.6,3456.5,0.57867]
[1754212377773,10.18407346,3456.6,3456.4,20.28268]
[1754212377974,9.14642273,3456.5,3456.4,20.28268]
[1754212381379,5.81062273,3456.5,3456.4,20.28268]
[1754212381582,8.76872273,3456.5,3456.4,20.28268]
[1754212381880,9.11252273,3456.5,3456.4,20.28268]
[1754212383180,1.76526223,3456.5,3456.4,20.28268]
[1754212383386,0.6994,3456.9,3456.7,0.57864]
[1754212383582,0.7481,3456.8,3456.7,0.57864]
[1754212383890,0.7481,3456.8,3456.7,20.28564]
[1754212384092,1.4475,3456.8,3456.7,20.28564]
[1754212384292,0.7481,3456.8,3456.7,20.28564]
[1754212384881,1.4475,3456.8,3456.7,20.28564]
[1754212389986,1.9013,3456.8,3456.7,20.28564]
[1754212390187,2.4451,3456.8,3456.7,20.28564]
[1754212391495,1.9013,3456.8,3456.7,20.28564]
[1754212391695,1.4475,3456.8,3456.7,20.28564]
[1754212392394,1.9013,3456.8,3456.7,20.28564]
[1754212392596,3.2391,3456.8,3456.7,20.28564]
[1754212395396,4.28037175,3456.8,3456.7,20.28564]
[1754212396699,4.28037175,3456.8,3456.7,0.57864]
[1754212396900,9.04989649,3456.8,3456.7,20.28364]
[1754212404407,9.04989649,3456.8,3456.7,0.57864]
[1754212405807,12.25769649,3456.8,3456.7,0.57864]
[1754212406707,9.04989649,3456.8,3456.7,0.57864]
[1754212409118,10.60880891,3456.8,3456.7,0.57864]
[1754212409313,9.04989649,3456.8,3456.7,0.57864]
[1754212410710,10.60880891,3456.8,3456.6,0.57865]
[1754212411016,6.0172605,3456.6,3456.5,19.705]
[1754212411216,9.04989649,3456.6,3456.5,19.705]
[1754212411415,9.04999763,3456.6,3456.5,20.28367]
[1754212413118,10.60891005,3456.6,3456.5,20.28367]
[1754212414222,9.04999763,3456.6,3456.5,20.28367]
[1754212415223,10.60891005,3456.6,3456.5,20.28367]
[1754212416119,9.04999763,3456.6,3456.5,20.28367]
[1754212417620,8.50619763,3456.6,3456.5,20.28367]
[1754212417825,9.06009763,3456.6,3456.5,20.28367]
[1754212425230,10.61901005,3456.6,3456.5,20.28367]
[1754212431835,9.06009763,3456.6,3456.5,20.28367]
[1754212433040,10.61901005,3456.6,3456.5,20.28367]
[1754212434644,9.06009763,3456.6,3456.5,20.28367]
[1754212434937,9.06009763,3456.6,3456.5,19.705]
[1754212436234,8.91635485,3456.6,3456.5,19.705]
[1754212436436,2.82939415,3456.6,3456.5,19.705]
[1754212436842,4.06309415,3456.6,3456.5,19.705]
[1754212437042,4.61699415,3456.6,3456.5,19.705]
[1754212437248,5.09489415,3456.6,3456.5,19.705]
[1754212437438,5.45069415,3456.6,3456.5,19.705]
[1754212438339,4.41083713,3456.6,3456.5,19.705]
[1754212439043,5.45069415,3456.6,3456.5,19.705]
[1754212439446,4.41083713,3456.6,3456.5,19.705]
[1754212444457,1.78953713,3456.6,3456.5,19.705]
[1754212444645,0.40815713,3456.6,3456.5,19.705]
[1754212444850,7.13e-06,3456.6,3456.5,19.705]
[1754212445048,1.03985702,3456.9,3456.8,0.4147]
[1754212445247,1.1885,3456.9,3456.8,0.6739]
[1754212445555,2.4645,3456.9,3456.8,0.6739]
[1754212446153,2.4645,3456.9,3456.8,0.4147]
[1754212446958,3.1625,3456.9,3456.8,0.4147]
[1754212447656,3.1625,3456.9,3456.8,0.6739]
[1754212447854,1.73785702,3457.1,3457.0,1.0191]
[1754212448054,1.73785702,3457.1,3457.0,20.7191]
[1754212448557,2.73665702,3457.1,3457.0,20.7191]
[1754212448759,2.0311,3457.1,3457.0,20.7191]
[1754212449464,2.4931,3457.1,3457.0,20.7191]
[1754212449958,3.1625,3457.1,3457.0,20.7191]
[1754212456158,3.1625,3457.1,3457.0,20.4599]
[1754212457062,4.20373736,3457.1,3457.0,20.4599]
[1754212458562,3.1625,3457.1,3457.0,20.4599]
[1754212461764,3.1625,3457.1,3457.0,20.3271]
[1754212461967,3.1625,3457.0,3456.9,0.57861]
[1754212462265,8.97326196,3457.0,3456.9,20.27261]
[1754212463957,8.97326196,3457.0,3456.9,0.57861]
[1754212464158,8.97326196,3457.0,3456.9,20.27261]
[1754212469668,8.97326196,3457.0,3456.9,0.57861]
[1754212470363,7.78476196,3457.0,3456.9,1.33851]
[1754212470563,1.15569146,3457.0,3456.9,1.59771]
[1754212470769,0.20340146,3457.0,3456.9,1.59771]
[1754212470963,1.46e-06,3457.0,3456.9,1.59771]
[1754212471165,1.9454,3457.4,3457.3,1.25204]
[1754212471364,7.2339605,3457.4,3457.3,21.77754]
[1754212472871,7.9671605,3457.4,3457.3,21.77754]
[1754212477764,7.9671605,3457.4,3457.3,20.27254]
[1754212478067,2.0201,3457.3,3457.2,0.57855]
[1754212478261,2.0201,3457.2,3457.1,20.26957]
[1754212478469,3.3374,3457.2,3457.1,20.26957]
[1754212478669,8.1068605,3457.2,3457.1,20.26957]
[1754212482970,9.14814387,3457.2,3457.1,20.26957]
[1754212483669,9.14814387,3457.2,3457.1,20.75637]
[1754212485175,9.14814387,3457.2,3457.1,21.87067]
[1754212490474,9.14814387,3457.2,3457.1,21.17657]
[1754212494680,9.14814387,3457.2,3457.1,20.75637]
[1754212498286,9.14814387,3457.2,3457.0,0.57858]
[1754212498483,7.58648337,3457.1,3457.0,20.26758]
[1754212498789,13.39580089,3457.1,3457.0,20.26758]
[1754212500792,13.39580089,3457.1,3457.0,0.57858]
[1754212502387,8.62634039,3457.1,3457.0,0.57858]
[1754212502692,13.39580089,3457.1,3457.0,0.57858]
[1754212503191,1.2305,3457.0,3456.9,0.5786]
[1754212503389,4.25048337,3457.0,3456.9,0.5786]
[1754212503589,3.2092,3456.9,3456.8,0.57862]
[1754212503789,4.25048337,3456.9,3456.8,0.57862]
[1754212503990,9.01994387,3456.9,3456.8,0.57862]
[1754212504192,9.01994387,3456.9,3456.1,1.03334]
[1754212504193,3.2092,3456.2,3456.1,1.03334]
[1754212504390,9.02018424,3456.2,3456.1,20.72134]
[1754212504690,9.02018424,3456.2,3456.1,20.85714]
[1754212504893,9.02018424,3456.2,3456.1,21.74624]
[1754212505092,9.02018424,3456.2,3456.1,21.07434]
[1754212505696,9.02018424,3456.2,3456.1,1.38634]
[1754212505882,9.02018424,3456.2,3456.1,21.07434]
[1754212506293,9.02018424,3456.2,3456.1,21.74624]
[1754212507094,8.51348424,3456.2,3456.1,21.74624]
[1754212507388,3.2078,3456.5,3456.4,2.05819]
[1754212507582,5.65077119,3456.5,3456.4,21.74619]
[1754212507989,12.22793169,3456.5,3456.4,20.1426]
[1754212508191,12.22793169,3456.5,3456.3,0.5787]
[1754212508192,1.301,3456.1,3456.0,1.38636]
[1754212508492,9.02013169,3456.1,3456.0,21.74726]
[1754212508694,4.25067119,3456.1,3456.0,21.74726]
[1754212510293,3.2092,3456.1,3456.0,21.74726]
[1754212517101,5.2326,3456.5,3456.4,1.25049]
[1754212517295,5.80172472,3456.5,3456.4,21.74819]
[1754212517501,1.04152472,3456.5,3456.4,21.74819]
[1754212518500,4.5088,3457.1,3457.0,0.57859]
[1754212518691,5.55017851,3457.1,3457.0,0.57859]
[1754212518890,10.31963901,3457.1,3457.0,0.57859]
[1754212519099,12.22783901,3457.1,3457.0,0.57859]
[1754212519500,12.22783901,3457.1,3457.0,1.03319]
[1754212519699,12.22783901,3457.1,3457.0,1.38619]
[1754212519896,12.22783901,3457.1,3457.0,1.03319]
[1754212520099,12.22783901,3457.1,3457.0,2.05809]
[1754212521803,12.22781753,3457.1,3457.0,2.05809]
[1754212522005,12.22781753,3457.1,3457.0,21.74709]
[1754212525598,12.22781753,3457.1,3457.0,20.93939]
[1754212525806,0.8287,3457.0,3456.8,20.26662]
[1754212526005,9.02001753,3456.9,3456.8,20.26662]
[1754212526805,7.11181753,3456.9,3456.7,0.57863]
[1754212527001,4.25055703,3456.8,3456.7,0.57863]
[1754212527202,9.02001753,3456.8,3456.7,0.57863]
[1754212530504,9.02001753,3456.8,3456.7,1.03323]
[1754212531814,9.02001753,3456.8,3456.7,1.97903]
[1754212532111,1.04135703,3456.8,3456.7,1.97903]
[1754212535509,1.04135703,3456.8,3456.7,5.18683]
[1754212537206,0.7054,3456.8,3456.7,5.18683]
[1754212537813,1.3864,3456.8,3456.7,5.18683]
[1754212539214,2.2749,3457.0,3456.9,1.96431]
[1754212539413,3.31617333,3457.0,3456.9,21.64931]
[1754212541815,4.21927333,3457.0,3456.9,21.64931]
[1754212542315,0.46112333,3457.0,3456.9,21.64931]
[1754212542509,0.681,3457.3,3457.2,0.57856]
[1754212542712,1.3864,3457.3,3457.2,21.64826]
[1754212543022,3.178,3457.3,3457.2,21.64826]
[1754212546311,1.3864,3457.4,3457.3,1.2091]
[1754212546518,1.3864,3457.4,3457.3,1.3857]
[1754212546712,3.2078,3457.5,3457.4,1.19762]
[1754212546918,4.2031,3457.9,3457.8,0.6191]
[1754212547218,5.1898,3457.9,3457.8,21.5827]
[1754212548910,5.8708,3457.9,3457.8,21.5827]
[1754212550117,5.8708,3457.9,3457.8,20.7788]
[1754212550421,5.8708,3457.9,3457.8,21.2236]
[1754212550619,5.8708,3457.9,3457.8,21.8489]
[1754212550822,2.663,3457.9,3457.8,20.7788]
[1754212551919,2.663,3457.9,3457.7,3.78627]
[1754212552119,6.0210605,3457.8,3457.6,0.57848]
[1754212552310,3.178,3457.7,3457.6,19.68]
[1754212552620,7.9474605,3457.7,3457.6,19.68]
[1754212553923,7.9474605,3457.7,3457.6,20.25848]
[1754212554523,8.98861758,3457.7,3457.6,20.25848]
[1754212555023,8.98861758,3457.7,3457.6,0.57848]
[1754212557523,8.98861758,3457.7,3457.3,20.25754]
[1754212557524,3.178,3457.4,3457.3,20.25754]
[1754212557722,7.42695708,3457.4,3457.3,20.25754]
[1754212557918,12.19641758,3457.4,3457.3,0.57854]
[1754212558421,7.82681758,3457.4,3457.3,3.32044]
[1754212558719,8.98861758,3457.4,3457.3,3.32044]
[1754212560124,7.76761758,3457.4,3457.3,3.32044]
[1754212560425,8.98861758,3457.4,3457.3,3.32044]
[1754212563527,8.98861758,3457.4,3457.3,0.4425]
[1754212563721,3.1849,3457.3,3457.2,0.57855]
[1754212563927,8.99551758,3457.3,3457.2,0.57855]
[1754212565030,1.7967,3457.0,3456.8,0.57862]
[1754212565224,5.81061758,3457.3,3456.8,0.57862]
[1754212565225,4.22605708,3456.9,3456.8,0.57862]
[1754212565425,8.99551758,3456.9,3456.8,0.57862]
[1754212569428,3.1849,3456.8,3456.7,0.57863]
[1754212569730,4.22605708,3456.8,3456.7,0.57863]
[1754212569920,8.99551758,3456.8,3456.7,0.57863]
[1754212570233,8.99551758,3456.8,3456.7,1.06023]
[1754212570727,8.99551758,3456.8,3456.7,1.75973]
[1754212570927,1.2769,3456.6,3456.5,0.57867]
[1754212571131,7.9543605,3456.6,3456.5,0.57867]
[1754212571333,7.9543605,3456.6,3456.5,1.06027]
[1754212571532,7.9543605,3456.6,3456.5,1.75977]
[1754212572534,3.1849,3456.5,3456.4,1.06028]
[1754212572732,3.1849,3456.5,3456.4,1.75978]
[1754212572935,7.9543605,3456.5,3456.4,1.75978]
[1754212573234,7.9543605,3456.5,3456.4,3.48318]
[1754212575129,5.4407605,3456.5,3456.4,3.48318]
[1754212575835,5.9605605,3456.5,3456.4,3.48318]
[1754212577235,7.2374605,3456.5,3456.4,3.48318]
[1754212577536,7.9543605,3456.5,3456.4,3.48318]
[1754212577936,7.2374605,3456.5,3456.4,3.48318]
[1754212578640,7.9543605,3456.5,3456.4,3.48318]
[1754212579039,1.2769,3456.4,3456.3,19.682]
[1754212579232,6.0463605,3456.4,3456.3,20.8631]
[1754212579541,7.9543605,3456.4,3456.3,22.5865]
[1754212581235,7.9543605,3456.4,3456.3,19.682]
[1754212581440,8.9958437,3456.4,3456.3,19.682]
[1754212581645,8.9958437,3456.4,3456.3,21.1198]
[1754212583040,8.9958437,3456.4,3456.3,19.682]
[1754212583340,8.9958437,3456.4,3456.3,20.8631]
[1754212584333,8.9958437,3456.4,3456.3,20.1636]
[1754212584536,8.9958437,3456.4,3456.3,19.682]
[1754212585038,3.1849,3456.2,3456.1,20.26174]
[1754212585337,1.2769,3456.1,3456.0,20.26075]
[1754212585530,4.2263832,3456.1,3456.0,0.57875]
[1754212585735,8.9958437,3456.1,3456.0,0.57875]
[1754212586038,8.9958437,3456.1,3456.0,1.75985]
[1754212586636,8.9958437,3456.1,3456.0,3.48325]
[1754212587140,7.7591437,3456.1,3456.0,3.48325]
[1754212587337,6.6287437,3456.1,3456.0,3.48325]
[1754212587936,7.3000437,3456.1,3456.0,3.48325]
[1754212588138,6.1477437,3456.1,3456.0,0.57875]
[1754212588341,8.9958437,3456.1,3456.0,1.75985]
[1754212588840,8.9958437,3456.1,3456.0,3.48325]
[1754212591741,8.9958437,3456.1,3456.0,0.57875]
[1754212592334,8.9958437,3456.1,3455.3,0.28957372]
[1754212592335,1.8711,3455.9,3455.7,0.57879]
[1754212592539,3.1544,3455.8,3455.7,22.16549]
[1754212592840,7.9238605,3455.8,3455.7,22.79069]
[1754212593743,7.9238605,3455.8,3455.7,21.47109]
[1754212594245,8.96554778,3455.8,3455.7,21.47109]
[1754212594640,8.96554778,3455.8,3455.7,20.74579]
[1754212595329,8.96554778,3455.8,3455.7,20.26279]
[1754212595533,10.30224778,3455.8,3455.6,0.57882]
[1754212595729,10.30224778,3455.8,3455.6,20.26382]
[1754212595730,4.19608728,3455.7,3455.6,20.26382]
[1754212595940,8.96554778,3455.7,3455.6,20.26382]
[1754212597244,8.96554778,3455.7,3455.6,0.57882]
[1754212598237,8.96554778,3455.7,3455.6,1.06182]
[1754212598542,8.96554778,3455.7,3455.6,3.46132]
[1754212598737,8.96554778,3455.7,3455.6,0.57882]
[1754212598936,1.2833,3455.4,3455.3,0.57887]
[1754212599136,7.9238605,3455.4,3455.3,0.57887]
[1754212599344,7.9238605,3455.4,3455.3,20.26487]
[1754212599535,1.2833,3455.2,3454.9,0.7253]
[1754212599736,1.2833,3455.2,3453.9,42.70828492]
[1754212599737,0.6565,3455.0,3454.7,0.81857]
[1754212599938,3.1544,3454.8,3454.7,22.06747]
[1754212600241,3.1544,3454.8,3454.7,21.82787]
[1754212600439,7.9238605,3454.8,3454.7,1.06197]
[1754212600641,3.1544,3454.7,3454.6,0.57898]
[1754212600832,3.1544,3454.7,3454.6,1.06198]
[1754212601032,8.96585601,3454.7,3454.6,1.06198]
[1754212601232,8.96585601,3454.7,3454.6,2.02688]
[1754212601637,8.96585601,3454.7,3454.6,1.78728]
[1754212601841,8.96585601,3454.7,3454.6,1.06198]
[1754212604047,8.96585601,3454.7,3454.6,2.02688]
[1754212604251,8.96585601,3454.7,3454.6,3.10688]
[1754212604547,8.96585601,3454.7,3454.6,3.46148]
[1754212605339,7.86405601,3454.7,3454.6,3.46148]
[1754212605546,5.08527601,3454.7,3454.6,3.46148]
[1754212608348,4.49675601,3454.7,3454.6,3.46148]
[1754212608652,4.4075,3455.2,3455.1,1.87131]
[1754212608860,7.4041342,3455.2,3455.1,3.46141]
[1754212609052,4.1963342,3455.2,3455.1,3.46141]
[1754212610648,3.5249342,3455.2,3455.1,3.46141]
[1754212610850,2.5004342,3455.2,3455.1,3.46141]
[1754212611353,1.0132,3455.2,3455.1,3.46141]
[1754212612450,3.1544,3455.2,3455.1,1.06191]
[1754212612654,4.19622441,3455.2,3455.0,20.26892]
[1754212612844,4.19622441,3455.1,3455.0,0.57892]
[1754212618268,4.19622441,3455.1,3455.0,1.06192]
[1754212618468,0.43253441,3455.1,3455.0,3.46142]
[1754212619063,0.43253441,3455.1,3454.9,3.2078]
[1754212619064,3.1544,3455.3,3455.2,2.8825]
[1754212619455,3.1544,3455.3,3455.1,0.57891]
[1754212619664,3.1544,3455.2,3455.1,0.57891]
[1754212622361,3.1544,3455.2,3455.1,3.54531]
[1754212623164,1.9398,3455.2,3455.1,3.54531]
[1754212623370,2.5018,3455.4,3455.3,1.83857]
[1754212623668,2.4939,3455.6,3455.5,3.52284]
[1754212624066,3.1966,3455.6,3455.5,3.52284]
[1754212629277,3.1966,3455.6,3455.5,2.50634]
[1754212630274,3.1966,3455.6,3455.5,3.18054]
[1754212630474,4.2384133,3455.6,3455.5,3.18054]
[1754212631073,4.2384133,3455.6,3455.5,3.52284]
[1754212631573,3.5357133,3455.6,3455.5,3.52284]
[1754212632880,4.2384133,3455.6,3455.5,3.52284]
[1754212639981,4.2384133,3455.6,3455.5,2.50634]
[1754212640383,4.2384133,3455.6,3455.5,3.16934]
[1754212641084,4.2384133,3455.6,3455.5,3.51164]
[1754212644487,4.2384133,3455.6,3455.5,1.77314]
[1754212644887,4.2384133,3455.6,3455.5,3.50324]
[1754212645183,4.2384133,3455.6,3455.5,2.49794]
[1754212645382,4.2384133,3455.6,3455.5,2.04114]
[1754212645777,4.2384133,3455.6,3455.5,3.50324]
[1754212647085,1.0418133,3455.6,3455.5,3.50324]
[1754212648277,1.7366133,3455.6,3455.5,3.50324]